[Event "53rd Indian Junior Open-ch 2024"]
[Site "Karnal"]
[Date "2024.09.22"]
[Round "9.2"]
[White "Jaiveer Mahendru"]
[Black "Adireddy Arjun"]
[Result "0-1"]
[ECO "B48"]
[WhiteElo "2246"]
[BlackElo "2343"]
[Annotator "TA"]
[PlyCount "116"]
[EventDate "2024.09.16"]
[EventType "swiss"]
[EventCountry "IND"]
[SourceTitle "playchess.com"]
[Source "ChessBase"]
[SourceQuality "1"]
[TimeControl "5400+30"]

{[%evp 11,116,27,38,34,50,37,25,31,29,27,41,44,18,35,52,40,48,43,57,36,43,26,79,18,22,0,0,0,51,8,16,0,0,-35,0,0,0,0,0,0,0,-6,0,-14,-2,-10,12,0,7,-14,0,0,0,0,0,-54,-53,-45,-46,-50,-50,-55,-55,-118,-123,-135,-122,-173,-129,-179,-189,-231,-238,-231,-240,-1085,-627,-1616,-1637,-1902,-1760,-5097,-4263,-29974,-29975,-29975,-29976,-29974,-29973,-29973,-29974,-29974,-29975,-29975,-29976,-29972,-29977,-29978,-29979,-29978,-29979,-29983,-29984,-29984,-29979,-29994,-29995]} 1. e4 {[%emt 0:06:47]} c5 {[%emt 0:00:21]} 2. Nf3 {[%emt 0:00:03]} e6 {[%emt 0:00:07]} 3. d4 {[%emt 0:00:02]} cxd4 {[%emt 0:00:07]} 4. Nxd4 {[%emt 0:00:04]} Nc6 {[%emt 0:00:09]} 5. Nc3 {[%emt 0:00:02]} Qc7 {[%emt 0:00:07]} 6. Be3 {[%emt 0:00:02]} a6 {[%emt 0:00:07]} 7. Qf3 {[%emt 0:00:17]} b5 {[%emt 0:00:24]} 8. Qg3 {[%emt 0:00:06]} Qxg3 {[%emt 0:01:25]} 9. hxg3 {[%emt 0:00:02] White has an edge.} Nxd4 {[%emt 0:02:25]} 10. Bxd4 {[%emt 0:00:04]} Bb7 {[%emt 0:00:09]} 11. f3 {[%emt 0:00:21]} Ne7 {[%emt 0:00:06]} 12. O-O-O {[%emt 0:00:05]} Nc6 {[%emt 0:00:52]} 13. Be3 {[%emt 0:00:12]} Rc8 {[%emt 0:06:44]} 14. g4 {[%emt 0:00:07]} Ne5 {[%emt 1:24:27]} 15. Rh5 {[%emt 0:04:54]} f6 {[%emt 0:00:00]} 16. Bd4 {[%emt 0:08:56]} Nf7 {[%emt 0:00:00]} (16... Bc5 $11) 17. Bd3 {[%emt 0:04:46]} (17. a4 $16) 17... Bd6 {[%emt 0:00:00]} 18. Ne2 {[%emt 0:05:49]} h6 {[%emt 0:00:00]} 19. Be3 {[%emt 0:11:40]} g5 {[%emt 0:00:00]} ({Better is} 19... Bc7 $11) 20. Rd2 {[%emt 0:07:56]} Ke7 {[%emt 0:00:00]} 21. Rh1 {[%emt 0:00:36]} Ne5 {[%emt 0:00:00]} 22. Rhd1 {[%emt 0:03:13][%cal Od3b5]} Bc5 {[%emt 0:00:00]} 23. Bxc5+ {[%emt 0:00:30]} Rxc5 {[%emt 0:00:00]} 24. Ng3 {[%emt 0:00:45]} a5 {[%emt 0:00:00]} 25. Be2 {[%emt 0:08:28]} b4 {[%emt 0:00:00]} 26. Kb1 {[%emt 0:04:28]} Bc6 {[%emt 0:00:00]} 27. Rd4 {[%emt 0:04:43]} Rc8 {[%emt 0:00:00]} 28. Rh1 {[%emt 0:02:16]} Nf7 {[%emt 0:00:00]} 29. Rd2 {[%emt 0:03:50]} Rd8 {[%emt 0:01:36]} 30. Rhd1 {[%emt 0:02:44]} d5 {[%emt 0:00:47]} 31. exd5 {[%emt 0:02:06]} Rcxd5 {[%emt 0:01:50]} 32. Rxd5 {[%emt 0:04:53]} Rxd5 {[%emt 0:00:44]} 33. Kc1 {[%emt 0:07:01]} (33. Rh1 $11) 33... Rxd1+ $15 {[%emt 0:01:48]} 34. Kxd1 {[%emt 0:00:01][%mdl 4096] Endgame. KBN-KBN} Kd6 {[%emt 0:00:23]} 35. Kd2 {[%emt 0:00:27]} Ke5 {[%emt 0:00:07]} 36. Nf1 {[%emt 0:05:00]} Nd6 {[%emt 0:01:38]} 37. Bd3 {[%emt 0:02:23] Black keeps a firm grip on the game.} (37. Ke1 $15) 37... f5 $1 $17 {[%emt 0:01:00] Strongly threatening ...fxg4. Black is more active.} 38. gxf5 {[%emt 0:00:02]} exf5 {[%emt 0:00:01]} 39. c3 {[%emt 0:01:38]} (39. Ke2 $17) 39... bxc3+ $19 {[%emt 0:01:27]} 40. bxc3 {[%emt 0:01:52]} (40. Kxc3 $17 h5 41. Bc2) 40... g4 {[%emt 0:01:07]} 41. fxg4 {[%emt 0:01:06]} fxg4 {[%emt 0:00:03]} (41... Bxg2 42. Ne3 Be4 43. gxf5 $11) 42. g3 {[%emt 0:00:24] [#]} Ne4+ $1 {[%emt 0:00:09]} 43. Bxe4 $2 {[%emt 0:00:33]} (43. Ke2 Nxc3+ 44. Kd2 Nxa2 45. Ne3) 43... Kxe4 {[%emt 0:00:01] KB-KN} (43... Bxe4 44. Ne3 Bf5 45. Nxf5 Kxf5 46. Ke3 $11) 44. Ne3 {[%emt 0:00:26]} Kf3 {[%emt 0:00:51]} 45. Nf5 {[%emt 0:00:04] [#]} h5 $1 {[%emt 0:00:43]} 46. Ke1 {[%emt 0:00:23]} Be4 {[%emt 0:01:09]} 47. Ng7 {[%emt 0:00:51]} Bg6 {[%emt 0:00:01] Black mates.} 48. c4 {[%emt 0:00:31]} Kxg3 {[%emt 0:00:58]} 49. c5 {[%emt 0:00:00]} Kh2 {[%emt 0:00:35]} 50. c6 {[%emt 0:00:23]} g3 {[%emt 0:00:07]} 51. c7 {[%emt 0:00:01]} g2 {[%emt 0:00:01]} 52. c8=Q {[%emt 0:00:06]} g1=Q+ {[%emt 0:00:02] KQB-KQN} (52... g1=B 53. Qc7+ Kh3 54. Qc6 (54. Qxa5 Kg4 $18) 54... Kg4 55. Qxg6+ Kf4 56. Nxh5+ (56. Qxg1 h4 57. Qc5 h3 58. Ke2 Ke4 59. Qf5+ Kd4 60. Kd2 Kc4 61. Ne6 Kb4 62. Qb1+ Kc4 63. Qb3#) 56... Ke5 57. Qxg1) 53. Ke2 {[%emt 0:01:21]} Qg2+ {[%emt 0:00:01]} 54. Ke3 {[%emt 0:00:58]} Qe4+ {[%emt 0:00:10]} ({Not} 54... Qxa2 55. Qc7+ Kh3 56. Qd7+ Kh4 57. Qd4+ Kh3 58. Qd7+ Kh4 59. Qd8+ Kh3 60. Qd7+ $11) 55. Kf2 {[%emt 0:00:20]} Qd4+ {[%emt 0:00:01]} 56. Ke2 {[%emt 0:01:16]} Bd3+ {[%emt 0:00:23]} 57. Ke1 {[%emt 0:00:32]} Qxg7 {[%emt 0:00:09]} 58. Qc7+ {[%emt 0:00:05]} Qxc7 {[%emt 0:00:07] Weighted Error Value: White=0.51/Black=0.06 (flawless) .  Mistake:       	White=6     	Black=2      Inaccurate:     	White=3     	Black=2      OK:         	White=9     	Black=10     Best:        	---       	Black=2      Strong:       	---       	Black=2} 0-1

[Event "53rd Indian Junior Open-ch 2024"]
[Site "Karnal"]
[Date "2024.09.22"]
[Round "9.3"]
[White "Madhvendra Pratap Sharma"]
[Black "Sourath Biswas"]
[Result "1/2-1/2"]
[ECO "B07"]
[WhiteElo "2061"]
[BlackElo "2305"]
[Annotator "RC"]
[PlyCount "89"]
[EventDate "2024.09.16"]
[EventType "swiss"]
[EventCountry "IND"]
[SourceTitle "playchess.com"]
[Source "ChessBase"]
[SourceQuality "1"]
[TimeControl "5400+30"]

1. e4 {[%emt 0:01:00]} d6 {[%emt 0:00:07]} 2. d4 {[%emt 0:00:41]} Nf6 {[%emt 0:00:05]} 3. Nc3 {[%emt 0:00:31]} e5 {[%emt 0:00:05]} 4. dxe5 {[%emt 0:06:25]} dxe5 {[%emt 0:00:12]} 5. Qxd8+ {[%emt 0:00:17]} Kxd8 {[%emt 0:00:04]} 6. Bg5 {[%emt 0:03:08]} Be6 {[%emt 0:04:00]} 7. g3 {[%emt 0:12:32]} Be7 {[%emt 0:08:04]} 8. f4 {[%emt 0:10:02]} exf4 {[%emt 0:01:27]} 9. gxf4 {[%emt 0:02:28]} h6 {[%emt 0:00:04]} 10. O-O-O+ {[%emt 0:04:52]} Kc8 {[%emt 0:00:07]} 11. Bxf6 {[%emt 0:01:39]} Bxf6 {[%emt 0:00:06]} 12. e5 {[%emt 0:02:58]} Be7 {[%emt 0:00:15]} 13. Bh3 {[%emt 0:00:43]} Rd8 {[%emt 0:07:09]} 14. Bxe6+ {[%emt 0:09:38]} fxe6 {[%emt 0:00:25]} 15. Rxd8+ {[%emt 0:03:19]} Kxd8 {[%emt 0:00:05]} 16. Nf3 {[%emt 0:00:23]} Bc5 {[%emt 0:09:59]} 17. Kd2 {[%emt 0:07:25]} Nc6 {[%emt 0:00:29]} 18. Ne4 {[%emt 0:04:39]} Bb6 {[%emt 0:09:32]} 19. c4 {[%emt 0:03:30]} Nd4 {[%emt 0:00:04]} 20. Nxd4 {[%emt 0:07:38]} Bxd4 {[%emt 0:00:06]} 21. c5 {[%emt 0:00:15]} Ke7 {[%emt 0:01:35]} 22. Ke2 {[%emt 0:02:30]} Rf8 {[%emt 0:00:37]} 23. Kd3 {[%emt 0:05:24]} Rd8 {[%emt 0:00:07]} 24. Ke2 {[%emt 0:01:23]} a5 {[%emt 0:02:53]} 25. Rc1 {[%emt 0:06:37]} b6 {[%emt 0:02:28]} 26. cxb6 {[%emt 0:00:18]} Bxb6 {[%emt 0:00:05]} 27. Rc4 {[%emt 0:00:59]} Kf7 {[%emt 0:01:00]} 28. Nc5 {[%emt 0:01:27]} g5 {[%emt 0:04:09]} 29. Nd3 {[%emt 0:01:44]} Kg6 {[%emt 0:00:08]} 30. fxg5 {[%emt 0:00:11]} hxg5 {[%emt 0:01:33]} 31. h4 {[%emt 0:00:02]} Rd4 {[%emt 0:00:26]} 32. Rxd4 {[%emt 0:01:16]} Bxd4 {[%emt 0:00:05]} 33. hxg5 {[%emt 0:00:03]} Kxg5 {[%emt 0:00:05]} 34. a4 {[%emt 0:01:33]} Kf5 {[%emt 0:05:05]} 35. b4 {[%emt 0:00:00]} axb4 {[%emt 0:00:05]} 36. Nxb4 {[%emt 0:00:01]} Kxe5 {[%emt 0:00:30]} 37. a5 {[%emt 0:00:51]} c5 {[%emt 0:01:20]} 38. Nc2 {[%emt 0:00:34]} Kd5 {[%emt 0:00:37]} 39. Na3 {[%emt 0:00:29]} Kc6 {[%emt 0:02:16]} 40. a6 {[%emt 0:00:09]} e5 {[%emt 0:04:41]} 41. Nc4 {[%emt 0:00:51]} Kc7 {[%emt 0:00:35]} 42. Kd3 {[%emt 0:00:30]} Kb8 {[%emt 0:00:03]} 43. Ke4 {[%emt 0:00:07]} Ka7 {[%emt 0:00:03]} 44. Kd5 {[%emt 0:00:07]} Kxa6 {[%emt 0:00:04]} 45. Nxe5 {[%emt 0:00:07]} 1/2-1/2

[Event "53rd Indian Junior Open-ch 2024"]
[Site "Karnal"]
[Date "2024.09.22"]
[Round "9.4"]
[White "Bhattacharyya Soham"]
[Black "Sri Charan Sandipagu"]
[Result "1-0"]
[ECO "D37"]
[WhiteElo "2425"]
[BlackElo "1964"]
[Annotator "TA"]
[PlyCount "81"]
[EventDate "2024.09.16"]
[EventType "swiss"]
[EventCountry "IND"]
[SourceTitle "playchess.com"]
[Source "ChessBase"]
[SourceQuality "1"]
[TimeControl "5400+30"]

{[%evp 15,81,39,77,68,65,60,51,50,74,68,53,60,58,83,80,81,75,73,81,75,78,72,75,0,0,-51,9,-165,-180,-204,-204,-195,-133,-133,0,0,0,0,79,98,456,447,461,471,524,429,701,554,562,524,537,555,658,636,696,620,687,709,904,866,1033,973,1025,964,1194,1157,931,921]} 1. d4 {[%emt 0:00:45]} Nf6 {[%emt 0:00:21]} 2. c4 {[%emt 0:00:07]} e6 {[%emt 0:00:07]} 3. Nf3 {[%emt 0:00:05]} d5 {[%emt 0:00:04]} 4. Nc3 {[%emt 0:00:06]} Be7 {[%emt 0:02:05]} 5. Bf4 {[%emt 0:00:35]} O-O {[%emt 0:01:41]} 6. e3 {[%emt 0:00:04]} c5 {[%emt 0:02:49]} 7. dxc5 {[%emt 0:02:15]} dxc4 {[%emt 0:02:01]} 8. Qc2 {[%emt 0:12:43]} Bxc5 {[%emt 0:03:26][%cal Ob7b5]} 9. Bxc4 {[%emt 0:00:55]} b6 {[%emt 1:22:26]} 10. Rd1 {[%emt 0:05:21]} Qe7 {[%emt 0:00:00]} 11. a3 {[%emt 0:00:14] Strongly threatening b4. White is slightly better.} Rd8 {[%emt 0:00:00]} 12. b4 {[%emt 0:15:34]} Bd6 {[%emt 0:00:00]} 13. Bxd6 {[%emt 0:00:22]} Rxd6 {[%emt 0:00:00]} 14. Rxd6 {[%emt 0:00:47]} Qxd6 {[%emt 0:00:00]} 15. Nb5 {[%emt 0:00:03]} Qd8 {[%emt 0:00:00]} 16. O-O {[%emt 0:03:56]} Bb7 {[%emt 0:00:00]} 17. Rd1 {[%emt 0:00:47]} Nbd7 {[%emt 0:00:00]} 18. Ng5 {[%emt 0:00:52][%cal Og5e6]} (18. Ne5 $5) 18... Qe7 {[%emt 0:00:00] [#]} 19. Bd3 {[%emt 0:25:24] White is much more active.} ({Better is} 19. Nxf7 $1 $16 {Threatens to win with Nfd6.} Be4 (19... Qxf7 20. Nd6 $16) 20. Qd2) 19... h6 $11 {[%emt 0:00:00]} 20. Qc7 {[%emt 0:02:44]} (20. Ne4 $11) 20... Ba6 {[%emt 0:00:00] [#]} (20... Bxg2 $15 21. Kxg2 Nd5 (21... hxg5 22. Qb7 $11) 22. Bh7+ Kh8) 21. Nxf7 $2 {[%emt 0:06:31]} Qxf7 $19 {[%emt 0:00:00]} 22. Nd6 {[%emt 0:00:26]} Qh5 {[%emt 0:00:00]} 23. Bc2 {[%emt 0:00:38]} Be2 {[%emt 0:00:00]} (23... Qe5 $19 {[%cal Oa8c8] White must now prevent ...Rc8!} 24. Bb3 Be2) 24. Rd2 $17 {[%emt 0:00:51]} Ne5 {[%emt 0:00:00]} ({Black should try} 24... Rf8 $17 {[%cal Of6g4] And now ...Ng4! would win.} 25. h3 Ne5) 25. Nc8 $11 {[%emt 0:02:45] Hoping for Rd8+.} Ne8 {[%emt 0:03:58]} (25... Kh8 $2 26. Rd8+ (26. Nxa7 $2 Nd5 $19) 26... Ne8 27. Qe7 $18 (27. Nxa7 Nf3+ 28. Kh1 Rxd8 29. Qf4 Nf6 30. h3 e5 31. Qg3 Ne4 32. Nc6 Nxg3+ 33. fxg3 Rd2 34. Ne7 Rxc2) (27. Qxe5 Bg4 $18) (27. Nxa7 Nf3+ 28. Kh1 Rxd8 29. Qf4 Nf6 30. h3 e5) (27. Qxe5 Bg4 $18)) 26. Rd8 $1 $40 {[%emt 0:06:30][%cal Oc7e7][%mdl 128] White is up to no good.} Nf3+ {[%emt 0:01:59]} 27. Kh1 $1 $16 {[%emt 0:00:39] Dancing on a razor blade.} Nxh2 {[%emt 0:00:06][%mdl 8192]} 28. Qxh2 $18 {[%emt 0:05:11] White is clearly winning.} Kf8 {[%emt 0:00:16] ...Qxh2+ is the strong threat.} 29. Be4 {[%emt 0:00:53]} Rb8 {[%emt 0:02:45]} 30. Bc6 {[%emt 0:00:13]} Qxh2+ {[%emt 0:00:15]} 31. Kxh2 {[%emt 0:00:02]} Bh5 {[%emt 0:00:03] [#]} 32. g4 $1 {[%emt 0:01:24][%mdl 512]} Bf7 {[%emt 0:00:08]} (32... Bg6 33. f4) 33. b5 {[%emt 0:00:08]} e5 {[%emt 0:00:17]} 34. f4 {[%emt 0:00:08]} exf4 {[%emt 0:00:53]} 35. exf4 {[%emt 0:00:09]} g6 {[%emt 0:00:08]} 36. g5 {[%emt 0:02:16]} hxg5 {[%emt 0:01:12]} 37. fxg5 {[%emt 0:00:02]} Kg7 {[%emt 0:00:18]} 38. Bxe8 {[%emt 0:00:05]} Be6 {[%emt 0:00:03]} 39. Bd7 {[%emt 0:00:14]} Bf7 {[%emt 0:01:06]} 40. Bh3 {[%emt 0:00:16]} Ra8 {[%emt 0:00:26] [#]} 41. Rd7 $1 {[%emt 0:00:13] Weighted Error Value: White=0.16 (very precise) /Black=0.48.  Loses game:     	White=1     	Black=1      Mistake:       	White=2     	Black=4      OK:         	White=10    	Black=8      Best:        	White=2     	Black=3      Strong:       	White=2     	---} 1-0

[Event "53rd Indian Junior Open-ch 2024"]
[Site "Karnal"]
[Date "2024.09.22"]
[Round "9.6"]
[White "Aniruddh Chatterjee"]
[Black "Guru Prakash, A.."]
[Result "*"]
[ECO "B67"]
[WhiteElo "2171"]
[BlackElo "1870"]
[Annotator "RC"]
[PlyCount "21"]
[EventDate "2024.09.16"]
[EventType "swiss"]
[EventCountry "IND"]
[SourceTitle "playchess.com"]
[Source "ChessBase"]
[SourceQuality "1"]
[TimeControl "5400+30"]

1. e4 {[%emt 0:00:11]} c5 {[%emt 0:00:02]} 2. Nf3 {[%emt 0:00:08]} d6 {[%emt 0:00:10]} 3. d4 {[%emt 0:00:05]} cxd4 {[%emt 0:00:06]} 4. Nxd4 {[%emt 0:00:05]} Nf6 {[%emt 0:00:12]} 5. Nc3 {[%emt 0:00:06]} Nc6 {[%emt 0:00:07]} 6. Bg5 {[%emt 0:00:08]} e6 {[%emt 0:00:02]} 7. Qd2 {[%emt 0:00:09]} a6 {[%emt 0:00:27]} 8. O-O-O {[%emt 0:00:11]} Bd7 {[%emt 0:00:08]} 9. Kb1 {[%emt 0:00:18]} b5 {[%emt 0:00:20]} 10. f3 {[%emt 0:03:01]} Be7 {[%emt 0:01:01]} 11. g4 {[%emt 0:04:24]} *

[Event "53rd Indian Junior Open-ch 2024"]
[Site "Karnal"]
[Date "2024.09.22"]
[Round "9.6"]
[White "Guru Prakash, A.."]
[Black "Mukund Hemant Agarwal"]
[Result "0-1"]
[ECO "B67"]
[WhiteElo "1870"]
[BlackElo "2073"]
[Annotator "RC"]
[PlyCount "68"]
[EventDate "2024.09.16"]
[EventType "swiss"]
[EventCountry "IND"]
[SourceTitle "playchess.com"]
[Source "ChessBase"]
[SourceQuality "1"]
[TimeControl "5400+30"]

1. e4 {[%emt 0:00:11]} c5 {[%emt 0:00:02]} 2. Nf3 {[%emt 0:00:08]} d6 {[%emt 0:00:10]} 3. d4 {[%emt 0:00:05]} cxd4 {[%emt 0:00:06]} 4. Nxd4 {[%emt 0:00:05]} Nf6 {[%emt 0:00:12]} 5. Nc3 {[%emt 0:00:06]} Nc6 {[%emt 0:00:07]} 6. Bg5 {[%emt 0:00:08]} e6 {[%emt 0:00:02]} 7. Qd2 {[%emt 0:00:09]} a6 {[%emt 0:00:27]} 8. O-O-O {[%emt 0:00:11]} Bd7 {[%emt 0:00:08]} 9. Kb1 {[%emt 0:00:18]} b5 {[%emt 0:00:20]} 10. f3 {[%emt 0:03:01]} Be7 {[%emt 0:01:01]} 11. g4 {[%emt 0:04:24]} h5 {[%emt 0:16:48]} 12. gxh5 {[%emt 0:12:12]} b4 {[%emt 0:04:03]} 13. Nxc6 {[%emt 0:09:52]} Bxc6 {[%emt 0:00:13]} 14. Bxf6 {[%emt 0:01:31]} Bxf6 {[%emt 0:04:00]} 15. Ne2 {[%emt 0:00:50]} Qb6 {[%emt 0:30:11]} 16. Ng3 {[%emt 0:07:59]} a5 {[%emt 0:08:54]} 17. f4 {[%emt 0:16:26]} O-O-O {[%emt 0:05:08]} 18. Bc4 {[%emt 0:14:39]} Kc7 {[%emt 0:06:01]} 19. Qe2 {[%emt 0:04:26]} Qc5 {[%emt 0:09:46]} 20. Rhe1 {[%emt 0:04:41]} a4 {[%emt 0:00:29]} 21. Bd3 {[%emt 0:10:39]} Bd4 {[%emt 0:07:14]} 22. Ba6 {[%emt 0:04:54]} a3 {[%emt 0:01:30]} 23. Qc4 {[%emt 0:00:19]} Bxb2 {[%emt 0:01:07]} 24. Rd3 {[%emt 0:03:32]} Qb6 {[%emt 0:03:16]} 25. Red1 {[%emt 0:01:19]} Rd7 {[%emt 0:00:23]} 26. Rb3 {[%emt 0:00:52]} Ra8 {[%emt 0:00:20]} 27. Bc8 {[%emt 0:00:22]} Kxc8 {[%emt 0:00:29]} 28. Rxb4 {[%emt 0:00:05]} Qc5 {[%emt 0:00:53]} 29. Qb3 {[%emt 0:00:53]} Rb7 {[%emt 0:00:31]} 30. Rxb7 {[%emt 0:00:06]} Bxb7 {[%emt 0:00:02]} 31. f5 {[%emt 0:00:15]} Ba6 {[%emt 0:01:00]} 32. fxe6 {[%emt 0:00:07]} Qc4 {[%emt 0:01:02]} 33. exf7 {[%emt 0:00:30]} Kc7 {[%emt 0:00:08]} 34. Qf3 {[%emt 0:00:11]} Bc3 {[%emt 0:00:40]} 0-1

[Event "53rd Indian Junior Open-ch 2024"]
[Site "Karnal"]
[Date "2024.09.22"]
[Round "9.7"]
[White "Rohit S"]
[Black "Hari Ganesh T"]
[Result "1/2-1/2"]
[ECO "C42"]
[WhiteElo "2309"]
[BlackElo "2029"]
[Annotator "ChessBase"]
[PlyCount "134"]
[EventDate "2024.09.16"]
[EventType "swiss"]
[EventCountry "IND"]
[SourceTitle "playchess.com"]
[Source "ChessBase"]
[SourceQuality "1"]
[TimeControl "5400+30"]

1. e4 {[%emt 0:04:13]} e5 {[%emt 0:00:07]} 2. Nf3 {[%emt 0:00:05]} Nf6 {[%emt 0:00:02]} 3. Nxe5 {[%emt 0:02:19]} d6 {[%emt 0:00:05]} 4. Nf3 {[%emt 0:00:03]} Nxe4 {[%emt 0:00:04]} 5. Bd3 {[%emt 0:01:00]} Nf6 {[%emt 0:04:26]} 6. O-O {[%emt 0:00:47]} Be7 {[%emt 0:00:56]} 7. c3 {[%emt 0:03:36]} Bg4 {[%emt 0:02:39]} 8. Bc2 {[%emt 0:01:21]} O-O {[%emt 0:01:59]} 9. d4 {[%emt 0:06:48]} Nbd7 {[%emt 0:04:40]} 10. Qd3 {[%emt 0:08:02]} Bh5 {[%emt 0:02:17]} 11. Nh4 {[%emt 0:02:02]} Re8 {[%emt 0:23:42]} 12. c4 {[%emt 0:07:13]} c5 {[%emt 0:12:59]} 13. Nc3 {[%emt 0:03:31]} Rc8 {[%emt 0:03:58]} 14. Bg5 {[%emt 0:02:45]} cxd4 {[%emt 0:03:52]} 15. Nd5 {[%emt 0:18:12]} Bg6 {[%emt 0:00:34]} 16. Nxg6 {[%emt 0:02:15]} hxg6 {[%emt 0:00:06]} 17. Nxe7+ {[%emt 0:01:08]} Qxe7 {[%emt 0:00:07]} 18. Qxd4 {[%emt 0:03:00]} Qe5 {[%emt 0:06:30]} 19. Bxf6 {[%emt 0:04:18]} Nxf6 {[%emt 0:00:17]} 20. Qxe5 {[%emt 0:00:45]} Rxe5 {[%emt 0:04:05]} 21. Bd3 {[%emt 0:02:23]} d5 {[%emt 0:01:23]} 22. cxd5 {[%emt 0:03:07]} Rxd5 {[%emt 0:03:54]} 23. Rfd1 {[%emt 0:03:34]} Rcd8 {[%emt 0:02:03]} 24. Be2 {[%emt 0:03:22]} Rd2 {[%emt 0:05:08]} 25. Bf3 {[%emt 0:00:18]} R8d7 {[%emt 0:02:35]} 26. b3 {[%emt 0:01:03]} Ne4 {[%emt 0:01:25]} 27. Rxd2 {[%emt 0:02:51]} Nxd2 {[%emt 0:00:07]} 28. Be2 {[%emt 0:02:29]} Ne4 {[%emt 0:00:26]} 29. Rd1 {[%emt 0:03:51]} Rc7 {[%emt 0:04:12]} 30. Bc4 {[%emt 0:01:52]} b5 {[%emt 0:01:34]} 31. Bxb5 {[%emt 0:00:46]} Nc3 {[%emt 0:00:01]} 32. Rd8+ {[%emt 0:00:02]} Kh7 {[%emt 0:00:01]} 33. Bc4 {[%emt 0:00:36]} Nxa2 {[%emt 0:00:02]} 34. f4 {[%emt 0:02:04]} Nc3 {[%emt 0:01:55]} 35. Rf8 {[%emt 0:00:38]} f5 {[%emt 0:02:03]} 36. Kf2 {[%emt 0:01:50]} a5 {[%emt 0:01:27]} 37. Ra8 {[%emt 0:00:34]} Nd1+ {[%emt 0:03:46]} 38. Ke2 {[%emt 0:01:07]} Nb2 {[%emt 0:00:02]} 39. Bg8+ {[%emt 0:00:10]} Kh6 {[%emt 0:00:01]} 40. Bd5 {[%emt 0:01:51]} Kh7 {[%emt 0:00:25]} 41. Rxa5 {[%emt 0:01:35]} Rc2+ {[%emt 0:00:02]} 42. Ke3 {[%emt 0:00:07]} Nd1+ {[%emt 0:00:38]} 43. Kd4 {[%emt 0:00:33]} Rd2+ {[%emt 0:00:14]} 44. Ke5 {[%emt 0:01:23]} Ne3 {[%emt 0:00:01]} 45. g3 {[%emt 0:00:52]} Rxh2 {[%emt 0:01:35]} 46. Be6 {[%emt 0:00:32]} Rd2 {[%emt 0:01:25]} 47. Bd5 {[%emt 0:00:33]} Rb2 {[%emt 0:02:06]} 48. Bf7 {[%emt 0:00:20]} Rd2 {[%emt 0:00:44]} 49. Ke6 {[%emt 0:00:30]} Nf1 {[%emt 0:01:17]} 50. Ra1 {[%emt 0:00:38]} Nxg3 {[%emt 0:00:08]} 51. Rg1 {[%emt 0:00:07]} Rd3 {[%emt 0:00:40]} 52. b4 {[%emt 0:00:06]} g5 {[%emt 0:00:49]} 53. Rg2 {[%emt 0:01:11]} g6 {[%emt 0:00:00]} 54. fxg5 {[%emt 0:00:18]} Kg7 {[%emt 0:00:26]} 55. Be8 {[%emt 0:00:20]} Re3+ {[%emt 0:00:29]} 56. Kd7 {[%emt 0:00:41]} f4 {[%emt 0:00:19]} 57. b5 {[%emt 0:00:36]} Ne4 {[%emt 0:00:48]} 58. Rc2 {[%emt 0:00:42]} f3 {[%emt 0:00:27]} 59. Kd8 {[%emt 0:00:32]} Rd3+ {[%emt 0:00:41]} 60. Kc7 {[%emt 0:00:28]} f2 {[%emt 0:01:04]} 61. Rxf2 {[%emt 0:00:12]} Nxf2 {[%emt 0:00:01]} 62. b6 {[%emt 0:00:00]} Ne4 {[%emt 0:00:28]} 63. b7 {[%emt 0:00:05]} Nc5 {[%emt 0:00:38]} 64. Bb5 {[%emt 0:00:23]} Ne6+ {[%emt 0:00:14]} 65. Kb6 {[%emt 0:00:13]} Rd8 {[%emt 0:00:29]} 66. Bd7 {[%emt 0:01:12]} Nf8 {[%emt 0:00:36]} 67. Bc8 {[%emt 0:00:05]} Rd1 {[%emt 0:00:25]} 1/2-1/2